[Event "Titled Tuesday Blitz August 22 Late 2023"]
[White "Kushko, Dmitriy"]
[Black "Trifan, Andrei Ioan"]
[WhiteFideId "14162261"]
[BlackFideId "12967068"]
[WhiteElo "2758"]
[BlackElo "2556"]
[Result "1-0"]
[Round "4"]
[TimeControl "180+1"]
[Date "2023.08.22"]
[WhiteClock "0:00:14"]
[BlackClock "0:00:00"]
[Board "55"]

1. Nf3 {[%clk 0:03:00]}  Nf6 {[%clk 0:02:58]} 2. g3 {[%clk 0:03:00]}  b6 {[%clk 0:02:58]} 3. Bg2 {[%clk 0:03:00]}  Bb7 {[%clk 0:02:58]} 4. c4 {[%clk 0:03:01]}  e6 {[%clk 0:02:57]} 5. Nc3 {[%clk 0:03:01]}  Be7 {[%clk 0:02:53]} 6. O-O {[%clk 0:03:01]}  O-O {[%clk 0:02:51]} 7. Re1 {[%clk 0:03:01]}  Ne4 {[%clk 0:02:45]} 8. Nxe4 {[%clk 0:02:59]}  Bxe4 {[%clk 0:02:46]} 9. d3 {[%clk 0:02:59]}  Bb7 {[%clk 0:02:44]} 10. e4 {[%clk 0:02:59]}  d5 {[%clk 0:02:33]} 11. exd5 {[%clk 0:02:59]}  exd5 {[%clk 0:02:34]} 12. Ne5 {[%clk 0:02:51]}  Nd7 {[%clk 0:02:26]} 13. d4 {[%clk 0:02:29]}  Nxe5 {[%clk 0:02:20]} 14. dxe5 {[%clk 0:02:29]}  c6 {[%clk 0:02:19]} 15. cxd5 {[%clk 0:02:29]}  cxd5 {[%clk 0:02:20]} 16. Be3 {[%clk 0:02:28]}  Qd7 {[%clk 0:02:11]} 17. Bd4 {[%clk 0:02:27]}  Rac8 {[%clk 0:02:07]} 18. Qd3 {[%clk 0:02:25]}  Qe6 {[%clk 0:02:03]} 19. Rac1 {[%clk 0:02:19]}  Rc4 {[%clk 0:01:54]} 20. b3 {[%clk 0:02:15]}  Rxc1 {[%clk 0:01:55]} 21. Rxc1 {[%clk 0:02:14]}  Rc8 {[%clk 0:01:56]} 22. Rc2 {[%clk 0:02:05]}  h6 {[%clk 0:01:41]} 23. h4 {[%clk 0:02:05]}  Bc5 {[%clk 0:01:29]} 24. Qe3 {[%clk 0:01:50]}  Bxd4 {[%clk 0:01:07]} 25. Rxc8+ {[%clk 0:01:49]}  Qxc8 {[%clk 0:01:08]} 26. Qxd4 {[%clk 0:01:50]}  Qc1+ {[%clk 0:01:08]} 27. Kh2 {[%clk 0:01:49]}  Qc5 {[%clk 0:01:09]} 28. Qxc5 {[%clk 0:01:05]}  bxc5 {[%clk 0:01:09]} 29. g4 {[%clk 0:00:58]}  Kf8 {[%clk 0:01:04]} 30. Kg3 {[%clk 0:00:56]}  Ke7 {[%clk 0:01:04]} 31. g5 {[%clk 0:00:45]}  hxg5 {[%clk 0:00:59]} 32. hxg5 {[%clk 0:00:45]}  Ke6 {[%clk 0:00:36]} 33. f4 {[%clk 0:00:44]}  Ba6 {[%clk 0:00:33]} 34. Bh3+ {[%clk 0:00:42]}  Ke7 {[%clk 0:00:33]} 35. f5 {[%clk 0:00:34]}  Bd3 {[%clk 0:00:28]} 36. f6+ {[%clk 0:00:32]}  gxf6 {[%clk 0:00:28]} 37. gxf6+ {[%clk 0:00:27]}  Kf8 {[%clk 0:00:22]} 38. e6 {[%clk 0:00:26]}  fxe6 {[%clk 0:00:20]} 39. Bxe6 {[%clk 0:00:27]}  Bb1 {[%clk 0:00:19]} 40. Bxd5 {[%clk 0:00:22]}  Bxa2 {[%clk 0:00:19]} 41. Kf4 {[%clk 0:00:22]}  a5 {[%clk 0:00:17]} 42. Ke5 {[%clk 0:00:22]}  Bb1 {[%clk 0:00:08]} 43. Kd6 {[%clk 0:00:21]}  Bc2 {[%clk 0:00:08]} 44. Kxc5 {[%clk 0:00:18]}  Bd3 {[%clk 0:00:08]} 45. Kb6 {[%clk 0:00:16]}  a4 {[%clk 0:00:01]} 46. bxa4 {[%clk 0:00:16]}  Ke8 {[%clk 0:00:02]} 47. a5 {[%clk 0:00:15]}  Kd7 {[%clk 0:00:03]} 48. a6 {[%clk 0:00:14]}  Bxa6 {[%clk 0:00:01]} 49. Kxa6 {[%clk 0:00:15]}  Kd6 {[%clk 0:00:00]} 50. Bb3 {[%clk 0:00:14]} 1-0


[Site "https://www.chess.com"]

[Event "Titled Tuesday Blitz August 22 Late 2023"]
[White "HamedWafa4"]
[Black "Ghazarian, Kirk"]
[BlackFideId "30908604"]
[WhiteElo "2551"]
[BlackElo "2738"]
[Result "0-1"]
[Round "4"]
[TimeControl "180+1"]
[Date "2023.08.22"]
[WhiteClock "0:00:00"]
[BlackClock "0:00:08"]
[Board "59"]

1. e4 {[%clk 0:02:55]}  c5 {[%clk 0:02:58]} 2. Nf3 {[%clk 0:02:54]}  a6 {[%clk 0:02:59]} 3. c3 {[%clk 0:02:51]}  d5 {[%clk 0:02:57]} 4. exd5 {[%clk 0:02:50]}  Qxd5 {[%clk 0:02:58]} 5. d4 {[%clk 0:02:49]}  e6 {[%clk 0:02:58]} 6. Be3 {[%clk 0:02:48]}  Nd7 {[%clk 0:02:57]} 7. Nbd2 {[%clk 0:02:45]}  b6 {[%clk 0:02:52]} 8. Bc4 {[%clk 0:02:36]}  Qc6 {[%clk 0:02:51]} 9. O-O {[%clk 0:02:36]}  Bb7 {[%clk 0:02:52]} 10. Rc1 {[%clk 0:02:35]}  Ngf6 {[%clk 0:02:50]} 11. Re1 {[%clk 0:02:11]}  Be7 {[%clk 0:02:44]} 12. Nf1 {[%clk 0:02:11]}  O-O {[%clk 0:02:41]} 13. Ng3 {[%clk 0:02:10]}  Rac8 {[%clk 0:02:34]} 14. h3 {[%clk 0:01:57]}  Rfd8 {[%clk 0:02:33]} 15. Bd3 {[%clk 0:01:48]}  h6 {[%clk 0:02:27]} 16. Qd2 {[%clk 0:01:45]}  Bf8 {[%clk 0:02:24]} 17. Bb1 {[%clk 0:01:37]}  cxd4 {[%clk 0:02:17]} 18. cxd4 {[%clk 0:01:35]}  Qd5 {[%clk 0:02:15]} 19. b3 {[%clk 0:01:34]}  Ba3 {[%clk 0:01:59]} 20. Rxc8 {[%clk 0:01:30]}  Rxc8 {[%clk 0:02:00]} 21. Bd3 {[%clk 0:01:24]}  b5 {[%clk 0:01:56]} 22. b4 {[%clk 0:01:13]}  Nb6 {[%clk 0:01:38]} 23. Rb1 {[%clk 0:01:06]}  Nc4 {[%clk 0:01:30]} 24. Qe2 {[%clk 0:01:01]}  Nxe3 {[%clk 0:01:04]} 25. fxe3 {[%clk 0:00:59]}  Qc6 {[%clk 0:01:03]} 26. Rb3 {[%clk 0:00:53]}  Qc7 {[%clk 0:00:39]} 27. Ne5 {[%clk 0:00:41]}  Bd5 {[%clk 0:00:36]} 28. Rb1 {[%clk 0:00:37]}  Qd6 {[%clk 0:00:26]} 29. Qe1 {[%clk 0:00:34]}  Qc7 {[%clk 0:00:18]} 30. e4 {[%clk 0:00:26]}  Bxa2 {[%clk 0:00:10]} 31. Ra1 {[%clk 0:00:26]}  Qc1 {[%clk 0:00:10]} 32. Qxc1 {[%clk 0:00:17]}  Rxc1+ {[%clk 0:00:10]} 33. Rxc1 {[%clk 0:00:17]}  Bxc1 {[%clk 0:00:11]} 34. Nc6 {[%clk 0:00:17]}  Bc4 {[%clk 0:00:09]} 35. Bc2 {[%clk 0:00:15]}  Bd2 {[%clk 0:00:06]} 36. Kf2 {[%clk 0:00:14]}  Kf8 {[%clk 0:00:06]} 37. Nf1 {[%clk 0:00:13]}  Bc3 {[%clk 0:00:06]} 38. Ne3 {[%clk 0:00:13]}  Ba2 {[%clk 0:00:05]} 39. Nd1 {[%clk 0:00:13]}  Ba1 {[%clk 0:00:05]} 40. Ke2 {[%clk 0:00:12]}  Nd7 {[%clk 0:00:05]} 41. Kd3 {[%clk 0:00:12]}  Nb6 {[%clk 0:00:05]} 42. Ne3 {[%clk 0:00:11]}  Nc4 {[%clk 0:00:04]} 43. Nxc4 {[%clk 0:00:08]}  Bxc4+ {[%clk 0:00:05]} 44. Ke3 {[%clk 0:00:09]}  Bc3 {[%clk 0:00:05]} 45. Bd3 {[%clk 0:00:09]}  Ba2 {[%clk 0:00:04]} 46. Nb8 {[%clk 0:00:08]}  Bxb4 {[%clk 0:00:03]} 47. Nxa6 {[%clk 0:00:09]}  Be1 {[%clk 0:00:03]} 48. Bxb5 {[%clk 0:00:09]}  Bh4 {[%clk 0:00:03]} 49. Bd3 {[%clk 0:00:09]}  Bb3 {[%clk 0:00:04]} 50. Nc5 {[%clk 0:00:10]}  Bd1 {[%clk 0:00:04]} 51. Nd7+ {[%clk 0:00:10]}  Kg8 {[%clk 0:00:04]} 52. Ne5 {[%clk 0:00:11]}  Ba4 {[%clk 0:00:04]} 53. Nf3 {[%clk 0:00:11]}  Be7 {[%clk 0:00:04]} 54. d5 {[%clk 0:00:10]}  exd5 {[%clk 0:00:04]} 55. exd5 {[%clk 0:00:11]}  Kf8 {[%clk 0:00:05]} 56. Ke4 {[%clk 0:00:11]}  Bd6 {[%clk 0:00:05]} 57. Ke3 {[%clk 0:00:12]}  Bd7 {[%clk 0:00:05]} 58. Be4 {[%clk 0:00:12]}  Ke7 {[%clk 0:00:06]} 59. Nd4 {[%clk 0:00:13]}  Kd8 {[%clk 0:00:06]} 60. Nf5 {[%clk 0:00:13]}  Be5 {[%clk 0:00:07]} 61. Nd4 {[%clk 0:00:12]}  h5 {[%clk 0:00:07]} 62. Nf3 {[%clk 0:00:12]}  Bc7 {[%clk 0:00:07]} 63. Nd4 {[%clk 0:00:13]}  Ke7 {[%clk 0:00:07]} 64. Bf5 {[%clk 0:00:13]}  Be8 {[%clk 0:00:06]} 65. Ke4 {[%clk 0:00:13]}  Kf6 {[%clk 0:00:06]} 66. Bc8 {[%clk 0:00:13]}  g6 {[%clk 0:00:05]} 67. g4 {[%clk 0:00:13]}  h4 {[%clk 0:00:04]} 68. Nf3 {[%clk 0:00:13]}  g5 {[%clk 0:00:04]} 69. Nd4 {[%clk 0:00:13]}  Ba4 {[%clk 0:00:04]} 70. Ba6 {[%clk 0:00:10]}  Bg3 {[%clk 0:00:04]} 71. Nf5 {[%clk 0:00:10]}  Bh2 {[%clk 0:00:03]} 72. Bf1 {[%clk 0:00:10]}  Bc2+ {[%clk 0:00:03]} 73. Ke3 {[%clk 0:00:09]}  Bg1+ {[%clk 0:00:03]} 74. Kf3 {[%clk 0:00:09]}  Bb3 {[%clk 0:00:03]} 75. d6 {[%clk 0:00:09]}  Ke6 {[%clk 0:00:03]} 76. Ba6 {[%clk 0:00:07]}  Bd5+ {[%clk 0:00:03]} 77. Ke2 {[%clk 0:00:07]}  Bh2 {[%clk 0:00:03]} 78. Bc8+ {[%clk 0:00:07]}  Kf6 {[%clk 0:00:04]} 79. Ke3 {[%clk 0:00:06]}  Be6 {[%clk 0:00:03]} 80. Bxe6 {[%clk 0:00:05]}  fxe6 {[%clk 0:00:04]} 81. d7 {[%clk 0:00:05]}  Bc7 {[%clk 0:00:05]} 82. Nd4 {[%clk 0:00:06]}  Ke7 {[%clk 0:00:05]} 83. Nf3 {[%clk 0:00:05]}  Bf4+ {[%clk 0:00:05]} 84. Ke4 {[%clk 0:00:05]}  Kxd7 {[%clk 0:00:06]} 85. Nd4 {[%clk 0:00:05]}  Kd6 {[%clk 0:00:06]} 86. Nf3 {[%clk 0:00:06]}  Bc1 {[%clk 0:00:06]} 87. Ne1 {[%clk 0:00:06]}  Bf4 {[%clk 0:00:05]} 88. Nf3 {[%clk 0:00:07]}  Bg3 {[%clk 0:00:06]} 89. Nd2 {[%clk 0:00:07]}  Ke7 {[%clk 0:00:05]} 90. Nf3 {[%clk 0:00:08]}  Bf4 {[%clk 0:00:06]} 91. Nd4 {[%clk 0:00:08]}  Kf6 {[%clk 0:00:06]} 92. Ne2 {[%clk 0:00:09]}  Bd2 {[%clk 0:00:06]} 93. Nd4 {[%clk 0:00:09]}  Bc3 {[%clk 0:00:06]} 94. Nf3 {[%clk 0:00:10]}  Kg6 {[%clk 0:00:06]} 95. Ng1 {[%clk 0:00:09]}  Bf6 {[%clk 0:00:07]} 96. Nf3 {[%clk 0:00:10]}  Kf7 {[%clk 0:00:07]} 97. Nd2 {[%clk 0:00:11]}  Ke7 {[%clk 0:00:08]} 98. Nf3 {[%clk 0:00:11]}  Kd6 {[%clk 0:00:09]} 99. Nd2 {[%clk 0:00:11]}  Kc5 {[%clk 0:00:09]} 100. Nf3 {[%clk 0:00:12]}  Kc4 {[%clk 0:00:09]} 101. Ke3 {[%clk 0:00:12]}  Kd5 {[%clk 0:00:10]} 102. Ne1 {[%clk 0:00:11]}  Be7 {[%clk 0:00:10]} 103. Nf3 {[%clk 0:00:10]}  Kc4 {[%clk 0:00:10]} 104. Ke4 {[%clk 0:00:10]}  Bf6 {[%clk 0:00:10]} 105. Nd2+ {[%clk 0:00:09]}  Kc3 {[%clk 0:00:10]} 106. Nf3 {[%clk 0:00:10]}  Kc2 {[%clk 0:00:11]} 107. Ke3 {[%clk 0:00:10]}  Kd1 {[%clk 0:00:11]} 108. Kd3 {[%clk 0:00:11]}  Be7 {[%clk 0:00:10]} 109. Nd4 {[%clk 0:00:10]}  Ke1 {[%clk 0:00:09]} 110. Nxe6 {[%clk 0:00:10]}  Kf2 {[%clk 0:00:09]} 111. Ke4 {[%clk 0:00:09]}  Kg3 {[%clk 0:00:09]} 112. Kf5 {[%clk 0:00:05]}  Kxh3 {[%clk 0:00:09]} 113. Nxg5+ {[%clk 0:00:00]}  Kg2 {[%clk 0:00:08]} 0-1


[Site "https://www.chess.com"]

[Event "Titled Tuesday Blitz August 22 Late 2023"]
[White "Haydon, David L"]
[Black "Roebers, Eline"]
[WhiteFideId "415405"]
[BlackFideId "1058401"]
[WhiteElo "2735"]
[BlackElo "2551"]
[Result "0-1"]
[Round "4"]
[TimeControl "180+1"]
[Date "2023.08.22"]
[WhiteClock "0:00:13"]
[BlackClock "0:00:08"]
[Board "60"]

1. d4 {[%clk 0:03:00]}  f5 {[%clk 0:02:59]} 2. Nc3 {[%clk 0:03:01]}  Nf6 {[%clk 0:02:59]} 3. Bf4 {[%clk 0:03:01]}  d5 {[%clk 0:02:59]} 4. e3 {[%clk 0:03:01]}  e6 {[%clk 0:02:57]} 5. Nf3 {[%clk 0:02:59]}  c5 {[%clk 0:02:52]} 6. Nb5 {[%clk 0:02:54]}  Na6 {[%clk 0:02:52]} 7. c4 {[%clk 0:02:51]}  cxd4 {[%clk 0:02:47]} 8. Qxd4 {[%clk 0:02:48]}  Bc5 {[%clk 0:02:42]} 9. Qd2 {[%clk 0:02:09]}  Ne4 {[%clk 0:02:33]} 10. Qc2 {[%clk 0:02:08]}  Bb4+ {[%clk 0:02:30]} 11. Nc3 {[%clk 0:02:08]}  Qa5 {[%clk 0:02:27]} 12. Rc1 {[%clk 0:02:07]}  Qxa2 {[%clk 0:02:23]} 13. cxd5 {[%clk 0:02:02]}  Qxd5 {[%clk 0:02:09]} 14. Bxa6 {[%clk 0:01:49]}  bxa6 {[%clk 0:02:04]} 15. O-O {[%clk 0:01:49]}  Nxc3 {[%clk 0:01:59]} 16. bxc3 {[%clk 0:01:47]}  Be7 {[%clk 0:01:49]} 17. Rfd1 {[%clk 0:01:44]}  Qc5 {[%clk 0:01:34]} 18. Qa4+ {[%clk 0:01:38]}  Kf8 {[%clk 0:01:33]} 19. Ne5 {[%clk 0:01:34]}  Qb5 {[%clk 0:01:13]} 20. Qd4 {[%clk 0:01:24]}  Bb7 {[%clk 0:01:11]} 21. c4 {[%clk 0:01:15]}  Qe8 {[%clk 0:01:07]} 22. c5 {[%clk 0:01:11]}  Bd5 {[%clk 0:00:56]} 23. c6 {[%clk 0:01:06]}  Rc8 {[%clk 0:00:31]} 24. Qxa7 {[%clk 0:01:02]}  Rg8 {[%clk 0:00:28]} 25. Qxa6 {[%clk 0:00:53]}  g5 {[%clk 0:00:25]} 26. Bg3 {[%clk 0:00:50]}  f4 {[%clk 0:00:26]} 27. Rxd5 {[%clk 0:00:33]}  exd5 {[%clk 0:00:22]} 28. exf4 {[%clk 0:00:30]}  Bd6 {[%clk 0:00:17]} 29. Qd3 {[%clk 0:00:20]}  Bxe5 {[%clk 0:00:12]} 30. fxe5 {[%clk 0:00:20]}  Rxc6 {[%clk 0:00:13]} 31. Qa3+ {[%clk 0:00:18]}  Kg7 {[%clk 0:00:12]} 32. Qa7+ {[%clk 0:00:16]}  Kh8 {[%clk 0:00:11]} 33. Rd1 {[%clk 0:00:16]}  Qe6 {[%clk 0:00:10]} 34. Qd4 {[%clk 0:00:17]}  Rgc8 {[%clk 0:00:10]} 35. h3 {[%clk 0:00:16]}  Rc1 {[%clk 0:00:08]} 36. Rxc1 {[%clk 0:00:16]}  Rxc1+ {[%clk 0:00:09]} 37. Kh2 {[%clk 0:00:16]}  Kg7 {[%clk 0:00:07]} 38. Qa7+ {[%clk 0:00:16]}  Kg6 {[%clk 0:00:06]} 39. Qe3 {[%clk 0:00:16]}  Rc7 {[%clk 0:00:06]} 40. Qd3+ {[%clk 0:00:16]}  Kg7 {[%clk 0:00:05]} 41. f3 {[%clk 0:00:15]}  h6 {[%clk 0:00:06]} 42. f4 {[%clk 0:00:14]}  Rf7 {[%clk 0:00:06]} 43. fxg5 {[%clk 0:00:14]}  hxg5 {[%clk 0:00:07]} 44. Qe3 {[%clk 0:00:15]}  Kg6 {[%clk 0:00:06]} 45. Qd3+ {[%clk 0:00:15]}  Kh6 {[%clk 0:00:07]} 46. Qd4 {[%clk 0:00:15]}  Rf5 {[%clk 0:00:07]} 47. Qe3 {[%clk 0:00:15]}  Kg6 {[%clk 0:00:06]} 48. Qd3 {[%clk 0:00:15]}  Kh6 {[%clk 0:00:06]} 49. Qd4 {[%clk 0:00:15]}  Rf7 {[%clk 0:00:06]} 50. Qc5 {[%clk 0:00:15]}  Rd7 {[%clk 0:00:05]} 51. Qf8+ {[%clk 0:00:15]}  Kg6 {[%clk 0:00:05]} 52. Qf3 {[%clk 0:00:12]}  d4 {[%clk 0:00:05]} 53. Qd3+ {[%clk 0:00:13]}  Qf5 {[%clk 0:00:05]} 54. Qa6+ {[%clk 0:00:11]}  Kg7 {[%clk 0:00:03]} 55. e6 {[%clk 0:00:11]}  Re7 {[%clk 0:00:04]} 56. Qd6 {[%clk 0:00:11]}  Rxe6 {[%clk 0:00:04]} 57. Qxd4+ {[%clk 0:00:11]}  Kg6 {[%clk 0:00:04]} 58. Qd8 {[%clk 0:00:11]}  Qf6 {[%clk 0:00:03]} 59. Qg8+ {[%clk 0:00:12]}  Kh6 {[%clk 0:00:03]} 60. Bc7 {[%clk 0:00:11]}  Qg6 {[%clk 0:00:03]} 61. Qh8+ {[%clk 0:00:11]}  Qh7 {[%clk 0:00:03]} 62. Qf8+ {[%clk 0:00:11]}  Qg7 {[%clk 0:00:03]} 63. Qf3 {[%clk 0:00:11]}  Qxc7+ {[%clk 0:00:03]} 64. Kg1 {[%clk 0:00:09]}  Qc1+ {[%clk 0:00:04]} 65. Kf2 {[%clk 0:00:09]}  Qf4 {[%clk 0:00:04]} 66. Qxf4 {[%clk 0:00:09]}  gxf4 {[%clk 0:00:05]} 67. Kf3 {[%clk 0:00:10]}  Kg5 {[%clk 0:00:06]} 68. h4+ {[%clk 0:00:10]}  Kf5 {[%clk 0:00:06]} 69. g4+ {[%clk 0:00:11]}  fxg3 {[%clk 0:00:06]} 70. Kxg3 {[%clk 0:00:12]}  Re3+ {[%clk 0:00:06]} 71. Kf2 {[%clk 0:00:13]}  Ra3 {[%clk 0:00:06]} 72. Kg2 {[%clk 0:00:13]}  Kg4 {[%clk 0:00:06]} 73. Kf2 {[%clk 0:00:14]}  Kxh4 {[%clk 0:00:07]} 74. Ke2 {[%clk 0:00:15]}  Kg4 {[%clk 0:00:07]} 75. Kd2 {[%clk 0:00:13]}  Kf4 {[%clk 0:00:08]} 0-1


[Site "https://www.chess.com"]

[Event "Titled Tuesday Blitz August 22 Late 2023"]
[White "Akobian, Varuzhan"]
[Black "Nurgaliyeva, Zarina"]
[WhiteFideId "13300580"]
[BlackFideId "13730096"]
[WhiteElo "2732"]
[BlackElo "2545"]
[Result "1-0"]
[Round "4"]
[TimeControl "180+1"]
[Date "2023.08.22"]
[WhiteClock "0:00:15"]
[BlackClock "0:00:00"]
[Board "61"]

1. d4 {[%clk 0:03:00]}  Nf6 {[%clk 0:02:56]} 2. c4 {[%clk 0:03:00]}  e6 {[%clk 0:02:53]} 3. Nc3 {[%clk 0:03:00]}  Bb4 {[%clk 0:02:50]} 4. Qc2 {[%clk 0:02:59]}  d5 {[%clk 0:02:47]} 5. a3 {[%clk 0:02:58]}  Bxc3+ {[%clk 0:02:47]} 6. Qxc3 {[%clk 0:02:58]}  c5 {[%clk 0:02:47]} 7. dxc5 {[%clk 0:02:56]}  d4 {[%clk 0:02:47]} 8. Qc2 {[%clk 0:02:55]}  e5 {[%clk 0:02:37]} 9. e4 {[%clk 0:02:54]}  a5 {[%clk 0:02:13]} 10. Nf3 {[%clk 0:02:38]}  Nc6 {[%clk 0:02:06]} 11. b3 {[%clk 0:02:28]}  O-O {[%clk 0:01:41]} 12. Rb1 {[%clk 0:02:25]}  Bg4 {[%clk 0:01:06]} 13. Nd2 {[%clk 0:02:02]}  Qe7 {[%clk 0:00:58]} 14. b4 {[%clk 0:01:50]}  axb4 {[%clk 0:00:59]} 15. axb4 {[%clk 0:01:49]}  Ra7 {[%clk 0:00:58]} 16. Bd3 {[%clk 0:01:43]}  Rfa8 {[%clk 0:00:56]} 17. O-O {[%clk 0:01:30]}  Ra4 {[%clk 0:00:39]} 18. b5 {[%clk 0:01:16]}  Nb4 {[%clk 0:00:37]} 19. Qb3 {[%clk 0:01:14]}  Nxd3 {[%clk 0:00:34]} 20. Qxd3 {[%clk 0:01:13]}  Qxc5 {[%clk 0:00:35]} 21. f4 {[%clk 0:00:52]}  exf4 {[%clk 0:00:17]} 22. Rxf4 {[%clk 0:00:50]}  Be6 {[%clk 0:00:18]} 23. e5 {[%clk 0:00:18]}  Nd7 {[%clk 0:00:09]} 24. Qxd4 {[%clk 0:00:17]}  Qxd4+ {[%clk 0:00:09]} 25. Rxd4 {[%clk 0:00:17]}  Nxe5 {[%clk 0:00:09]} 26. Bb2 {[%clk 0:00:16]}  Nxc4 {[%clk 0:00:08]} 27. Nxc4 {[%clk 0:00:16]}  Rxc4 {[%clk 0:00:07]} 28. Rxc4 {[%clk 0:00:15]}  Bxc4 {[%clk 0:00:08]} 29. b6 {[%clk 0:00:15]}  f6 {[%clk 0:00:06]} 30. Rc1 {[%clk 0:00:16]}  Bd5 {[%clk 0:00:05]} 31. Rc5 {[%clk 0:00:15]}  Bc6 {[%clk 0:00:05]} 32. Bd4 {[%clk 0:00:15]}  Ra2 {[%clk 0:00:02]} 33. Rxc6 {[%clk 0:00:14]}  bxc6 {[%clk 0:00:01]} 34. b7 {[%clk 0:00:14]}  Kf7 {[%clk 0:00:00]} 35. b8=Q {[%clk 0:00:15]} 1-0


[Site "https://www.chess.com"]

[Event "Titled Tuesday Blitz August 22 Late 2023"]
[White "Jovic, Stanoje"]
[Black "Martinez Ramirez, Lennis"]
[WhiteFideId "905020"]
[BlackFideId "3509079"]
[WhiteElo "2538"]
[BlackElo "2732"]
[Result "0-1"]
[Round "4"]
[TimeControl "180+1"]
[Date "2023.08.22"]
[WhiteClock "0:00:00"]
[BlackClock "0:00:19"]
[Board "62"]

1. c4 {[%clk 0:03:00]}  d6 {[%clk 0:02:58]} 2. g3 {[%clk 0:03:00]}  e5 {[%clk 0:02:58]} 3. Bg2 {[%clk 0:03:00]}  f5 {[%clk 0:02:58]} 4. Nc3 {[%clk 0:03:00]}  Nf6 {[%clk 0:02:59]} 5. d3 {[%clk 0:02:59]}  Be7 {[%clk 0:02:59]} 6. Nf3 {[%clk 0:02:57]}  O-O {[%clk 0:03:00]} 7. O-O {[%clk 0:02:57]}  a5 {[%clk 0:02:59]} 8. Rb1 {[%clk 0:02:57]}  Qe8 {[%clk 0:02:50]} 9. a3 {[%clk 0:02:57]}  c6 {[%clk 0:02:46]} 10. b4 {[%clk 0:02:56]}  axb4 {[%clk 0:02:45]} 11. axb4 {[%clk 0:02:56]}  Nbd7 {[%clk 0:02:28]} 12. Bd2 {[%clk 0:02:43]}  e4 {[%clk 0:02:20]} 13. Nd4 {[%clk 0:02:36]}  Ne5 {[%clk 0:02:18]} 14. Qc2 {[%clk 0:02:24]}  Qh5 {[%clk 0:02:03]} 15. dxe4 {[%clk 0:01:56]}  fxe4 {[%clk 0:02:03]} 16. Nxe4 {[%clk 0:01:51]}  Nxe4 {[%clk 0:02:03]} 17. Qxe4 {[%clk 0:01:40]}  Nxc4 {[%clk 0:01:45]} 18. Bf4 {[%clk 0:01:23]}  Qf7 {[%clk 0:01:40]} 19. Rfc1 {[%clk 0:01:06]}  d5 {[%clk 0:01:40]} 20. Qd3 {[%clk 0:00:56]}  Ra3 {[%clk 0:01:38]} 21. Rb3 {[%clk 0:00:47]}  Bxb4 {[%clk 0:01:29]} 22. e4 {[%clk 0:00:38]}  Rxb3 {[%clk 0:01:07]} 23. Qxb3 {[%clk 0:00:36]}  Bc5 {[%clk 0:01:07]} 24. exd5 {[%clk 0:00:29]}  cxd5 {[%clk 0:00:54]} 25. Nf3 {[%clk 0:00:27]}  h6 {[%clk 0:00:46]} 26. h4 {[%clk 0:00:26]}  Be6 {[%clk 0:00:44]} 27. Qb5 {[%clk 0:00:23]}  b6 {[%clk 0:00:43]} 28. Qc6 {[%clk 0:00:20]}  Rc8 {[%clk 0:00:41]} 29. Qb5 {[%clk 0:00:18]}  Ra8 {[%clk 0:00:42]} 30. Re1 {[%clk 0:00:17]}  Ra2 {[%clk 0:00:37]} 31. Be3 {[%clk 0:00:13]}  Nxe3 {[%clk 0:00:36]} 32. fxe3 {[%clk 0:00:13]}  Qg6 {[%clk 0:00:31]} 33. Kh2 {[%clk 0:00:10]}  Bf5 {[%clk 0:00:25]} 34. Ne5 {[%clk 0:00:00]}  Qe6 {[%clk 0:00:19]} 0-1


[Site "https://www.chess.com"]

[Event "Titled Tuesday Blitz August 22 Late 2023"]
[White "Koellner, Ruben Gideon"]
[Black "subham777"]
[WhiteFideId "12993093"]
[WhiteElo "2719"]
[BlackElo "2534"]
[Result "1/2-1/2"]
[Round "4"]
[TimeControl "180+1"]
[Date "2023.08.22"]
[WhiteClock "0:00:20"]
[BlackClock "0:00:23"]
[Board "65"]

1. d4 {[%clk 0:03:00]}  d5 {[%clk 0:02:49]} 2. Nf3 {[%clk 0:03:00]}  Nf6 {[%clk 0:02:49]} 3. Nbd2 {[%clk 0:03:00]}  Bf5 {[%clk 0:02:31]} 4. e3 {[%clk 0:03:00]}  e6 {[%clk 0:02:30]} 5. Ne5 {[%clk 0:03:01]}  Bd6 {[%clk 0:02:28]} 6. g4 {[%clk 0:03:00]}  Bg6 {[%clk 0:02:26]} 7. h4 {[%clk 0:03:00]}  h5 {[%clk 0:02:12]} 8. Nxg6 {[%clk 0:03:00]}  fxg6 {[%clk 0:02:13]} 9. g5 {[%clk 0:03:01]}  Nfd7 {[%clk 0:02:02]} 10. Bd3 {[%clk 0:03:00]}  Nf8 {[%clk 0:02:02]} 11. c4 {[%clk 0:02:59]}  Nbd7 {[%clk 0:01:57]} 12. Qc2 {[%clk 0:02:59]}  Kf7 {[%clk 0:01:51]} 13. c5 {[%clk 0:02:59]}  Be7 {[%clk 0:01:50]} 14. f4 {[%clk 0:02:46]}  c6 {[%clk 0:01:48]} 15. Nf3 {[%clk 0:02:46]}  a5 {[%clk 0:01:45]} 16. O-O {[%clk 0:02:42]}  Qe8 {[%clk 0:01:39]} 17. Bd2 {[%clk 0:02:42]}  Kg8 {[%clk 0:01:35]} 18. Rfb1 {[%clk 0:02:41]}  b5 {[%clk 0:01:25]} 19. cxb6 {[%clk 0:02:36]}  Nxb6 {[%clk 0:01:24]} 20. Ne5 {[%clk 0:02:36]}  c5 {[%clk 0:01:09]} 21. dxc5 {[%clk 0:02:33]}  Rc8 {[%clk 0:01:07]} 22. Nxg6 {[%clk 0:02:27]}  Bxc5 {[%clk 0:01:01]} 23. Nxf8 {[%clk 0:01:05]}  Bxe3+ {[%clk 0:00:43]} 24. Bxe3 {[%clk 0:01:06]}  Rxc2 {[%clk 0:00:44]} 25. Bxc2 {[%clk 0:01:07]}  Qxf8 {[%clk 0:00:44]} 26. Bxb6 {[%clk 0:01:00]}  Qxf4 {[%clk 0:00:43]} 27. Bf2 {[%clk 0:00:33]}  Qg4+ {[%clk 0:00:34]} 28. Kh1 {[%clk 0:00:27]}  Qf3+ {[%clk 0:00:29]} 29. Kg1 {[%clk 0:00:26]}  Qg4+ {[%clk 0:00:28]} 30. Kh1 {[%clk 0:00:20]}  Qf3+ {[%clk 0:00:27]} 31. Kg1 {[%clk 0:00:20]}  Qg4+ {[%clk 0:00:23]} 1/2-1/2


[Site "https://www.chess.com"]